Workbook

Sheet Лист1
A1: Школа | C1: МБОУ "Рыбно-Слободская СОШ№2" | F1: Согласовано: | G1: должность | H1: Директор
A2: Типовое примерное меню приготавливаемых блюд | G2: фамилия | H2: Захарова Л.Н.
A3: Возрастная категория | E3: 7-11 лет | G3: дата | H3: 29 | I3: 12 | J3: 2025
H4: день | I4: месяц | J4: год
A5: Неделя | B5: День недели | C5: Прием пищи | D5: Раздел меню | E5: Блюда | F5: Вес блюда, г | G5: Белки | H5: Жиры | I5: Углеводы | J5: Калорийность | K5: № рецептуры | L5: Цена
A6: 1 | B6: 1 | C6: Завтрак | D6: Закуска | E6: Салат из белокочанной капусты | F6: 60 | G6: 1.16 | H6: 6.05 | I6: 5.8 | J6: 82.29
D7: гор.блюдо | E7: Каша гречневая рассыпчатая | F7: 150 | G7: 6.9 | H7: 7.6 | I7: 33.6 | J7: 230.3
D8: гор.блюдо | E8: Котлета домашняя мясная с соусом | F8: 100 | G8: 8 | H8: 5.98 | I8: 7.94 | J8: 117.58
D9: хлеб | E9: Хлеб пшеничный | F9: 30 | G9: 2.6 | H9: 0.81 | I9: 14.4 | J9: 74.73
D10: хлеб | E10: Хлеб ржано-пшеничный | F10: 20 | G10: 1.32 | H10: 0.22 | I10: 8.2 | J10: 40.06
D11: гор.напиток | E11: Чай с сахаром | F11: 200 | G11: 0.2 | H11: 0.05 | I11: 10 | J11: 41.3
E12: Цена завтрака / Итого за завтрак | L12: 77.76
D13: итого | F13: =SUM(F6:F12) -> 560 | G13: 20.18 | H13: 20.71 | I13: 79.94 | J13: 586.26 | L13: =SUM(L6:L12) -> 77.76
A14: =A6 -> 1 | B14: =B6 -> 1 | C14: Завтрак 2 | D14: фрукты
D17: итого | F17: =SUM(F14:F16) -> 0 | G17: =SUM(G14:G16) -> 0 | H17: =SUM(H14:H16) -> 0 | I17: =SUM(I14:I16) -> 0 | J17: =SUM(J14:J16) -> 0 | L17: =SUM(L14:L22) -> 0
A18: =A6 -> 1 | B18: =B6 -> 1 | C18: Обед | D18: гор.блюдо | E18: Борщ с капустой и картофелем на мкб со сметаной | F18: 250 | G18: 7 | H18: 8 | I18: 17.9 | J18: 172.6
D19: гор.блюдо | E19: Картофельное пюре | F19: 150 | G19: 3.8 | H19: 6.5 | I19: 34.8 | J19: 212.9
D20: гор.блюдо | E20: Кнели куриные с соусом | F20: 100 | G20: 11.99 | H20: 11.05 | I20: 24.94 | J20: 247.17
D21: хлеб | E21: Хлеб пшеничный | F21: 20 | G21: 1.64 | H21: 0.54 | I21: 9.6 | J21: 49.82
D22: хлеб | E22: Хлеб ржано-пшеничный | F22: 20 | G22: 1.3 | H22: 0.2 | I22: 8.2 | J22: 40.05
D23: напиток | E23: Компот из свежих плодов | F23: 200 | G23: 0.17 | H23: 0.17 | I23: 19.18 | J23: 76.8
L24: 103
E25: Цена обеда/ Итого за обед
D27: итого | F27: =SUM(F18:F26) -> 740 | G27: 25.9 | H27: 26.46 | I27: 114.62 | J27: 799.34 | L27: =SUM(L18:L26) -> 103
A28: =A6 -> 1 | B28: =B6 -> 1 | C28: Полдник | D28: гор.блюдо
D29: хлеб
D30: гор.напиток
D32: итого | F32: =SUM(F28:F31) -> 0 | G32: =SUM(G28:G31) -> 0 | H32: 0 | I32: 0 | J32: =SUM(J28:J31) -> 0
A33: =A6 -> 1 | B33: =B6 -> 1 | C33: Ужин | D33: гор.блюдо
D34: гарнир
D35: напиток
D36: хлеб
D39: итого | F39: =SUM(F33:F38) -> 0 | G39: =SUM(G33:G38) -> 0 | H39: =SUM(H33:H38) -> 0 | I39: =SUM(I33:I38) -> 0 | J39: =SUM(J33:J38) -> 0 | L39: =SUM(L33:L41) -> 0
A40: =A6 -> 1 | B40: =B6 -> 1 | C40: Ужин 2 | D40: кисломол.
D41: булочное
D42: напиток
D43: фрукты
D46: итого | F46: =SUM(F40:F45) -> 0 | G46: =SUM(G40:G45) -> 0 | H46: =SUM(H40:H45) -> 0 | I46: =SUM(I40:I45) -> 0 | J46: =SUM(J40:J45) -> 0 | L46: =SUM(L40:L48) -> 0
A47: =A6 -> 1 | B47: =B6 -> 1 | C47: Итого за день: | F47: =F13+F17+F27+F32+F39+F46 -> 1300 | G47: =G13+G17+G27+G32+G39+G46 -> 46.08 | H47: =H13+H17+H27+H32+H39+H46 -> 47.17 | I47: 194.56 | J47: 1385.6 | L47: =SUM(L13,L27,L32) -> 180.76
A48: 1 | B48: 2 | C48: Завтрак | D48: Закуска | E48: Плоды иди ягоды свежие (яблоко) | F48: 100 | G48: 0.4 | H48: 0.4 | I48: 9.8 | J48: 47
D49: гор.блюдо | E49: Макаронные изделия отварные с маслом | F49: 150 | G49: 5.47 | H49: 6.37 | I49: 34.34 | J49: 216.57
D50: гор.блюдо | E50: Фрикассе из куриных грудок | F50: 90 | G50: 8.78 | H50: 11.55 | I50: 3.65 | J50: 153.67
D51: хлеб | E51: Хлеб пшеничный | F51: 30 | G51: 2.6 | H51: 0.81 | I51: 14.4 | J51: 74.73
D52: хлеб | E52: Хлеб ржано-пшеничный | F52: 20 | G52: 1.32 | H52: 0.22 | I52: 8.2 | J52: 40.06
D53: гор.напиток | E53: Чай с сахаром и лимоном | F53: 200 | G53: 0.04 | H53: 0.005 | I53: 10.1 | J53: 40.7
L54: 77.76
D55: итого | F55: =SUM(F48:F54) -> 590 | G55: 18.61 | H55: 19.355 | I55: 80.49 | J55: 572.73 | L55: =SUM(L48:L54) -> 77.76
A56: =A48 -> 1 | B56: =B48 -> 2 | C56: Завтрак 2 | D56: фрукты
D59: итого | F59: =SUM(F56:F58) -> 0 | G59: =SUM(G56:G58) -> 0 | H59: =SUM(H56:H58) -> 0 | I59: =SUM(I56:I58) -> 0 | J59: =SUM(J56:J58) -> 0 | L59: =SUM(L56:L64) -> 0
A60: =A48 -> 1 | B60: =B48 -> 2 | C60: Обед | D60: гор.блюдо | E60: Рассольник Ленинградский на мкб со сметаной | F60: 250 | G60: 7 | H60: 8.2 | I60: 17.3 | J60: 171.3
D61: гарнир | E61: Рис отварной | F61: 150 | G61: 3.7 | H61: 6.3 | I61: 37.2 | J61: 220.6
D62: гор.блюдо | E62: Биточки рыбные (из минтая) с соусом | F62: 100 | G62: 10.42 | H62: 10.66 | I62: 18.1 | J62: 210.02
D63: хлеб | E63: Хлеб пшеничный | F63: 40 | G63: 3.28 | H63: 1.08 | I63: 19.2 | J63: 99.64
D64: хлеб | E64: Хлеб ржано-пшеничный | F64: 20 | G64: 1.32 | H64: 0.22 | I64: 8.2 | J64: 40.06
D65: напиток | E65: Компот из сухофруктов | F65: 200 | G65: 0.05 | H65: 0 | I65: 12.6 | J65: 50.6
L66: 103
D69: итого | F69: =SUM(F60:F68) -> 760 | G69: 25.77 | H69: 26.46 | I69: 112.6 | J69: 792.22 | L69: =SUM(L60:L68) -> 103
A70: =A48 -> 1 | B70: =B48 -> 2 | C70: Полдник | D70: гор.блюдо
D71: гор.напиток
D74: итого | F74: =SUM(F70:F73) -> 0 | G74: =SUM(G70:G73) -> 0 | H74: =SUM(H70:H73) -> 0 | I74: =SUM(I70:I73) -> 0 | J74: =SUM(J70:J73) -> 0
A75: =A48 -> 1 | B75: =B48 -> 2 | C75: Ужин | D75: гор.блюдо
D76: гарнир
D77: напиток
D78: хлеб
D81: итого | F81: =SUM(F75:F80) -> 0 | G81: =SUM(G75:G80) -> 0 | H81: =SUM(H75:H80) -> 0 | I81: =SUM(I75:I80) -> 0 | J81: =SUM(J75:J80) -> 0 | L81: =SUM(L75:L83) -> 0
A82: =A48 -> 1 | B82: =B48 -> 2 | C82: Ужин 2 | D82: кисломол.
D83: булочное
D84: напиток
D85: фрукты
D88: итого | F88: =SUM(F82:F87) -> 0 | G88: =SUM(G82:G87) -> 0 | H88: =SUM(H82:H87) -> 0 | I88: =SUM(I82:I87) -> 0 | J88: =SUM(J82:J87) -> 0 | L88: =SUM(L82:L90) -> 0
A89: =A48 -> 1 | B89: =B48 -> 2 | C89: Итого за день: | F89: =F55+F59+F69+F74+F81+F88 -> 1350 | G89: =G55+G59+G69+G74+G81+G88 -> 44.38 | H89: 45.815 | I89: 193.09 | J89: 1364.95 | L89: =SUM(L55,L69,L74) -> 180.76
A90: 1 | B90: 3 | C90: Завтрак | D90: Закуска | E90: Винегрет овощной | F90: 60 | G90: 0.86 | H90: 6.1 | I90: 5.84 | J90: 81.8
D91: гор.блюдо | E91: Плов из куриных грудок с рисом | F91: 190 | G91: 14.44 | H91: 12.6 | I91: 38.9 | J91: 326.76
D92: хлеб | E92: Хлеб пшеничный | F92: 40 | G92: 3.28 | H92: 1.08 | I92: 19.2 | J92: 99.64
D93: хлеб | E93: Хлеб ржано-пшеничный | F93: 20 | G93: 1.32 | H93: 0.22 | I93: 8.2 | J93: 40.06
D94: напиток | E94: Чай с сахаром и яблоками | F94: 200 | G94: 0.24 | H94: 0.09 | I94: 11 | J94: 45.77
L95: 77.76
D97: итого | F97: =SUM(F90:F96) -> 510 | G97: 20.14 | H97: 20.09 | I97: 83.14 | J97: 594.03 | L97: =SUM(L90:L96) -> 77.76
A98: =A90 -> 1 | B98: =B90 -> 3 | C98: Завтрак 2 | D98: фрукты
D101: итого | F101: =SUM(F98:F100) -> 0 | G101: =SUM(G98:G100) -> 0 | H101: =SUM(H98:H100) -> 0 | I101: =SUM(I98:I100) -> 0 | J101: =SUM(J98:J100) -> 0 | L101: =SUM(L98:L106) -> 0
A102: =A90 -> 1 | B102: =B90 -> 3 | C102: Обед | D102: гор.блюдо | E102: Пельмени с бульоном | F102: 280 | G102: 7.3 | H102: 12.33 | I102: 33.11 | J102: 272.61
D103: гор.блюдо | E103: Жаркое по-домашнему (из говядины) | F103: 190 | G103: 16.23 | H103: 13 | I103: 46.9 | J103: 361.52
D104: хлеб | E104: Хлеб пшеничный | F104: 30 | G104: 2.6 | H104: 0.81 | I104: 14.4 | J104: 74.73
D105: хлеб | E105: Хлеб ржано-пшеничный | F105: 20 | G105: 1.32 | H105: 0.22 | I105: 8.2 | J105: 40.06
D106: напиток | E106: Чай с сахаром и изюмом | F106: 193 | G106: 0.8 | H106: 0.09 | I106: 13 | J106: 56.01
L107: 103
D111: итого | F111: =SUM(F102:F110) -> 713 | G111: 28.25 | H111: 26.45 | I111: 115.61 | J111: 804.93 | L111: =SUM(L102:L110) -> 103
A112: =A90 -> 1 | B112: =B90 -> 3 | C112: Полдник | D112: гор.блюдо
D113: гор.напиток
D116: итого | F116: =SUM(F112:F115) -> 0 | G116: =SUM(G112:G115) -> 0 | H116: =SUM(H112:H115) -> 0 | I116: =SUM(I112:I115) -> 0 | J116: =SUM(J112:J115) -> 0
A117: =A90 -> 1 | B117: =B90 -> 3 | C117: Ужин | D117: гор.блюдо
D118: гарнир
D119: напиток
D120: хлеб
D123: итого | F123: =SUM(F117:F122) -> 0 | G123: =SUM(G117:G122) -> 0 | H123: =SUM(H117:H122) -> 0 | I123: =SUM(I117:I122) -> 0 | J123: =SUM(J117:J122) -> 0 | L123: =SUM(L117:L125) -> 0
A124: =A90 -> 1 | B124: =B90 -> 3 | C124: Ужин 2 | D124: кисломол.
D125: булочное
D126: напиток
D127: фрукты
D130: итого | F130: =SUM(F124:F129) -> 0 | G130: =SUM(G124:G129) -> 0 | H130: =SUM(H124:H129) -> 0 | I130: =SUM(I124:I129) -> 0 | J130: =SUM(J124:J129) -> 0 | L130: =SUM(L124:L132) -> 0
A131: =A90 -> 1 | B131: =B90 -> 3 | C131: Итого за день: | F131: =F97+F101+F111+F116+F123+F130 -> 1223 | G131: =G97+G101+G111+G116+G123+G130 -> 48.39 | H131: 46.54 | I131: 198.75 | J131: 1398.96 | L131: =SUM(L97,L111,L116) -> 180.76
A132: 1 | B132: 4 | C132: Завтрак | D132: Закуска | E132: Сыр | F132: 10 | G132: 2.7 | H132: 1.68 | J132: 25.92
D133: гор.блюдо | E133: Каша вязкая молочная гречневая с маслом | F133: 215 | G133: 7.4 | H133: 10.39 | I133: 30.1 | J133: 243.51
D134: гор.блюдо | E134: Сосиска в тесте | F134: 90 | G134: 7.1 | H134: 6.8 | I134: 25.6 | J134: 192
D135: хлеб | E135: Хлеб пшеничный | F135: 30 | G135: 2.6 | H135: 0.81 | I135: 14.4 | J135: 74.73
D136: гор.напиток | E136: Чай с сахаром | F136: 200 | G136: 0.2 | H136: 0.05 | I136: 10 | J136: 41.3
L137: 77.76
D139: итого | F139: =SUM(F132:F138) -> 545 | G139: 20 | H139: 19.73 | I139: 80.1 | J139: 577.46 | K139: =SUM(K132:K138) -> 0 | L139: =SUM(L132:L138) -> 77.76
A140: =A132 -> 1 | B140: =B132 -> 4 | C140: Завтрак 2 | D140: фрукты
D143: итого | F143: =SUM(F140:F142) -> 0 | G143: =SUM(G140:G142) -> 0 | H143: =SUM(H140:H142) -> 0 | I143: =SUM(I140:I142) -> 0 | J143: =SUM(J140:J142) -> 0 | L143: =SUM(L140:L148) -> 0
A144: =A132 -> 1 | B144: =B132 -> 4 | C144: Обед | D144: гор.блюдо | E144: Суп картофельный с бобовыми (гороховый) на мкб с гренками из пшеничного хлеба | F144: 250 | G144: 6.99 | H144: 3.4 | I144: 24.48 | J144: 156.48
D145: гарнир | E145: Макаронные изделия отварные с маслом | F145: 150 | G145: 5.47 | H145: 6.37 | I145: 34.34 | J145: 216.57
D146: гор.блюдо | E146: Тефтели с соусом | F146: 100 | G146: 11.2 | H146: 15.48 | I146: 22.2 | J146: 272.92
D147: хлеб | E147: Хлеб пшеничный | F147: 30 | G147: 2.6 | H147: 0.81 | I147: 14.4 | J147: 74.73
D148: хлеб | E148: Хлеб ржано-пшеничный | F148: 20 | G148: 1.32 | H148: 0.22 | I148: 8.2 | J148: 40.06
D149: напиток | E149: Компот из свежих плодов | F149: 200 | G149: 0.17 | H149: 0.17 | I149: 19.18 | J149: 76.8
L150: 103
D153: итого | F153: =SUM(F144:F152) -> 750 | G153: 27.75 | H153: 26.45 | I153: 122.8 | J153: 837.56 | K153: =SUM(K144:K152) -> 0 | L153: 103
A154: =A132 -> 1 | B154: =B132 -> 4 | C154: Полдник | D154: гор.блюдо
D155: гор.напиток
D158: итого | F158: =SUM(F154:F157) -> 0 | G158: =SUM(G154:G157) -> 0 | H158: =SUM(H154:H157) -> 0 | I158: =SUM(I154:I157) -> 0 | J158: =SUM(J154:J157) -> 0 | L158: 33
A159: =A132 -> 1 | B159: =B132 -> 4 | C159: Ужин | D159: гор.блюдо
D160: гарнир
D161: напиток
D162: хлеб
D165: итого | F165: =SUM(F159:F164) -> 0 | G165: =SUM(G159:G164) -> 0 | H165: =SUM(H159:H164) -> 0 | I165: =SUM(I159:I164) -> 0 | J165: =SUM(J159:J164) -> 0 | L165: =SUM(L159:L167) -> 0
A166: =A132 -> 1 | B166: =B132 -> 4 | C166: Ужин 2 | D166: кисломол.
D167: булочное
D168: напиток
D169: фрукты
D172: итого | F172: =SUM(F166:F171) -> 0 | G172: =SUM(G166:G171) -> 0 | H172: =SUM(H166:H171) -> 0 | I172: =SUM(I166:I171) -> 0 | J172: =SUM(J166:J171) -> 0 | L172: =SUM(L166:L174) -> 0
A173: =A132 -> 1 | B173: =B132 -> 4 | C173: Итого за день: | F173: =F139+F143+F153+F158+F165+F172 -> 1295 | G173: =G139+G143+G153+G158+G165+G172 -> 47.75 | H173: 46.18 | I173: 202.9 | J173: 1415.02 | L173: =SUM(L139,L153,L158) -> 213.76
A174: 1 | B174: 5 | C174: Завтрак | D174: Закуска | E174: Плоды или ягоды свежие (яблоко) | F174: 100 | G174: 0.4 | H174: 0.4 | I174: 9.8 | J174: 47
D175: гор.блюдо | E175: Картофельное пюре | F175: 150 | G175: 3.8 | H175: 6.5 | I175: 34.8 | J175: 212.9
D176: гор.блюдо | E176: Котлета из птицы (курицы), запеченная с соусом | F176: 100 | G176: 12.1 | H176: 12.26 | I176: 7.82 | J176: 190.02
D177: хлеб | E177: Хлеб пшеничный | F177: 30 | G177: 2.5 | H177: 0.81 | I177: 9.4 | J177: 54.89
D178: хлеб | E178: Хлеб ржано-пшеничный | F178: 20 | G178: 1.32 | H178: 0.22 | I178: 8.2 | J178: 40.06
D179: гор.напиток | E179: Чай с сахаром и лимоном | F179: 200 | G179: 0.04 | H179: 0.005 | I179: 10.1 | J179: 40.7
L180: 77.76
D181: итого | F181: =SUM(F174:F180) -> 600 | G181: 20.16 | H181: 20.195 | I181: 80.12 | J181: 585.57 | L181: =SUM(L174:L180) -> 77.76
A182: =A174 -> 1 | B182: =B174 -> 5 | C182: Завтрак 2 | D182: фрукты
D185: итого | F185: =SUM(F182:F184) -> 0 | G185: =SUM(G182:G184) -> 0 | H185: =SUM(H182:H184) -> 0 | I185: =SUM(I182:I184) -> 0 | J185: =SUM(J182:J184) -> 0 | L185: =SUM(L182:L190) -> 0
A186: =A174 -> 1 | B186: =B174 -> 5 | C186: Обед | D186: гор.блюдо | E186: Суп с макаронными изделиями с курицей со сметаной | F186: 275 | G186: 8.18 | H186: 9.2 | I186: 27.7 | J186: 226.32
D187: гор.блюдо | E187: Гречка с мясом и овощами | F187: 190 | G187: 15.2 | H187: 15.94 | I187: 36.36 | J187: 349.7
D188: хлеб | E188: Хлеб пшеничный | F188: 40 | G188: 3.28 | H188: 1.08 | I188: 19.2 | J188: 99.64
D189: хлеб | E189: Хлеб ржано-пшеничный | F189: 20 | G189: 1.32 | H189: 0.22 | I189: 17.2 | J189: 76.06
D190: напиток | E190: Компот из сухофруктов | F190: 200 | G190: 0.05 | H190: 0 | I190: 12.6 | J190: 50.6
L191: 103
D195: итого | F195: =SUM(F186:F194) -> 725 | G195: 28.03 | H195: 26.44 | I195: 113.06 | J195: 802.32 | L195: =SUM(L186:L194) -> 103
A196: =A174 -> 1 | B196: =B174 -> 5 | C196: Полдник | D196: гор.блюдо
D197: Хлеб
D198: гор.напиток
D200: итого | F200: =SUM(F196:F199) -> 0 | G200: =SUM(G196:G199) -> 0 | H200: =SUM(H196:H199) -> 0 | I200: =SUM(I196:I199) -> 0 | J200: =SUM(J196:J199) -> 0 | L200: 33
A201: =A174 -> 1 | B201: =B174 -> 5 | C201: Ужин | D201: гор.блюдо
D202: гарнир
D203: напиток
D204: хлеб
D207: итого | F207: =SUM(F201:F206) -> 0 | G207: =SUM(G201:G206) -> 0 | H207: =SUM(H201:H206) -> 0 | I207: =SUM(I201:I206) -> 0 | J207: =SUM(J201:J206) -> 0 | L207: =SUM(L201:L209) -> 0
A208: =A174 -> 1 | B208: =B174 -> 5 | C208: Ужин 2 | D208: кисломол.
D209: булочное
D210: напиток
D211: фрукты
D214: итого | F214: =SUM(F208:F213) -> 0 | G214: =SUM(G208:G213) -> 0 | H214: =SUM(H208:H213) -> 0 | I214: =SUM(I208:I213) -> 0 | J214: =SUM(J208:J213) -> 0 | L214: =SUM(L208:L216) -> 0
A215: =A174 -> 1 | B215: =B174 -> 5 | C215: Итого за день: | F215: =F181+F185+F195+F200+F207+F214 -> 1325 | G215: =G181+G185+G195+G200+G207+G214 -> 48.19 | H215: 46.635 | I215: 193.18 | J215: 1387.89 | L215: =SUM(L181,L195,L200) -> 213.76
A216: 1 | B216: 6 | C216: Завтрак | D216: Кондитерское изделие | E216: Кондитерское изделие | F216: 30 | G216: 1.8 | H216: 6.6 | I216: 16.8 | J216: 133.8
D217: гор.блюдо | E217: Макаронные изделия отварные с маслом | F217: 150 | G217: 5.47 | H217: 6.37 | I217: 34.34 | J217: 216.57
D218: гарнир | E218: Гуляш из говядины с соусом | F218: 90 | G218: 9.19 | H218: 5.9 | I218: 3.44 | J218: 103.62
D219: хлеб | E219: Хлеб пшеничный | F219: 20 | G219: 1.64 | H219: 0.54 | I219: 9.6 | J219: 49.82
D220: хлеб | E220: Хлеб ржано-пшеничный | F220: 20 | G220: 1.32 | H220: 0.22 | I220: 8.2 | J220: 40.06
D221: гор.напиток | E221: Чай с сахаром и урюком | F221: 197 | G221: 0.43 | H221: 0.09 | I221: 14.4 | J221: 60.1
L222: 77.76
D223: итого | F223: =SUM(F216:F222) -> 507 | G223: 19.85 | H223: 19.72 | I223: 86.78 | J223: 603.97 | L223: =SUM(L216:L222) -> 77.76
A224: =A216 -> 1 | B224: =B216 -> 6 | C224: Завтрак 2 | D224: фрукты
D227: итого | F227: =SUM(F224:F226) -> 0 | G227: =SUM(G224:G226) -> 0 | H227: =SUM(H224:H226) -> 0 | I227: =SUM(I224:I226) -> 0 | J227: =SUM(J224:J226) -> 0 | L227: =SUM(L224:L232) -> 0
A228: =A216 -> 1 | B228: =B216 -> 6 | C228: Обед | D228: гор.блюдо | E228: Щи из свежей капусты с картофелем на мкб со сметаной | F228: 250 | G228: 6.5 | H228: 8 | I228: 9.3 | J228: 135.4
D229: гарнир | E229: Плов из говядины | F229: 190 | G229: 14.6 | H229: 17.4 | I229: 54.5 | J229: 433
D230: хлеб | E230: Хлеб пшеничный | F230: 30 | G230: 2.6 | H230: 0.81 | I230: 14.4 | J230: 74.73
D231: хлеб | E231: Хлеб ржано-пшеничный | F231: 30 | G231: 1.98 | H231: 0.33 | I231: 12.3 | J231: 60.09
D232: напиток | E232: Кисель | F232: 200 | G232: 0 | H232: 0 | I232: 20.9 | J232: 83.9
L233: 103
D237: итого | F237: =SUM(F228:F236) -> 700 | G237: 25.68 | H237: 26.54 | I237: 111.4 | J237: 787.12 | K237: =SUM(K228:K236) -> 0 | L237: 103
A238: =A216 -> 1 | B238: =B216 -> 6 | C238: Полдник | D238: гор.блюдо
D239: гор.напиток
D242: итого | F242: =SUM(F238:F241) -> 0 | G242: =SUM(G238:G241) -> 0 | H242: =SUM(H238:H241) -> 0 | I242: =SUM(I238:I241) -> 0 | J242: =SUM(J238:J241) -> 0
A243: =A216 -> 1 | B243: =B216 -> 6 | C243: Ужин | D243: гор.блюдо
D244: гарнир
D245: напиток
D246: хлеб
D249: итого | F249: =SUM(F243:F248) -> 0 | G249: =SUM(G243:G248) -> 0 | H249: =SUM(H243:H248) -> 0 | I249: =SUM(I243:I248) -> 0 | J249: =SUM(J243:J248) -> 0 | L249: =SUM(L243:L251) -> 0
A250: =A216 -> 1 | B250: =B216 -> 6 | C250: Ужин 2 | D250: кисломол.
D251: булочное
D252: напиток
D253: фрукты
D256: итого | F256: =SUM(F250:F255) -> 0 | G256: =SUM(G250:G255) -> 0 | H256: =SUM(H250:H255) -> 0 | I256: =SUM(I250:I255) -> 0 | J256: =SUM(J250:J255) -> 0 | L256: =SUM(L250:L258) -> 0
A257: =A216 -> 1 | B257: =B216 -> 6 | C257: Итого за день: | F257: =F223+F227+F237+F242+F249+F256 -> 1207 | G257: =G223+G227+G237+G242+G249+G256 -> 45.53 | H257: 46.26 | I257: 198.18 | J257: 1391.09 | L257: =SUM(L223,L237,L242) -> 180.76
A258: 1 | B258: 7 | C258: Завтрак | D258: гор.блюдо
D260: гор.напиток
D261: хлеб
D262: фрукты
D265: итого | F265: =SUM(F258:F264) -> 0 | G265: =SUM(G258:G264) -> 0 | H265: =SUM(H258:H264) -> 0 | I265: =SUM(I258:I264) -> 0 | J265: =SUM(J258:J264) -> 0 | L265: =SUM(L258:L264) -> 0
... 247 more rows
